{"text_format":"1","workbook":"xlsx","n_sheets":2,"sheets":["Pasiūlymas","Subtiekėjai"],"not_rendered":{"charts":0,"images":0,"macros":1,"external_links":0,"defined_names":0,"comments":0,"pivot_tables":0},"unopened":[],"bounds":{"document_bytes":16777216,"sheet_cells":100000,"rows_first":2000,"rows_last":500,"rows_between":2000,"halvings":0,"cell_chars":16384,"cell_head_chars":4096},"cells_cut":0,"cells_raw":0,"read":"whole","date_system":"1900"}

{"sheet":"Pasiūlymas","index":0,"n_rows":569,"n_cols":13,"rows_kept":569,"cut":false,"hidden":false,"merged":[[547,1,547,7],[555,1,555,7],[478,1,478,7],[497,1,497,7],[508,1,508,7],[519,1,519,7],[534,1,534,7],[297,1,297,7],[308,1,308,7],[321,1,321,7],[342,1,342,7],[449,1,449,7],[257,1,257,7],[265,1,265,7],[273,1,273,7],[281,1,281,7],[290,1,290,7],[188,1,188,7],[198,1,198,7],[206,1,206,7],[240,1,240,7],[248,1,248,7],[138,1,138,7],[146,1,146,7],[154,1,154,7],[163,1,163,7],[178,1,178,7],[95,1,95,7],[105,1,105,7],[112,1,112,7],[119,1,119,7],[130,1,130,7],[28,1,28,7],[49,1,49,7],[62,1,62,7],[75,1,75,7],[86,1,86,7],[9,0,9,1],[9,2,9,4],[10,0,10,1],[10,2,10,4],[11,0,11,1],[11,2,11,4],[12,0,12,1],[12,2,12,4],[13,0,13,1],[13,2,13,4],[14,0,14,1],[14,2,14,4],[18,0,18,1],[18,2,18,4],[19,0,19,1],[19,2,19,4],[15,0,15,1],[16,0,16,1],[17,0,17,1],[15,2,15,4],[16,2,16,4],[17,2,17,4]]}
["Perkantysis subjektas, kuriam teikiamas pasiūlymas:",null,"VŠĮ Kauno klinikinė ligoninė"]
[]
[null,"PASIŪLYMAS"]
[null,"Vienkartinių priemonių papildomas pirkimas"]
[]
["Data:","2019-07-08"]
["Nr.:","19-247"]
["Vieta:","Vilnius"]
[]
["Tiekėjo arba tiekėjų grupės narių pavadinimas (-ai)",null,"UAB Mediq Lietuva"]
["Tiekėjo arba tiekėjo grupės narių juridinio asmens kodas (-ai) (tuo atveju, jei pasiūlymą teikia fizinis asmuo - verslo pažymėjimo Nr. ar pan.)",null,302513086]
["Tiekėjo arba tiekėjo grupės narių PVM mokėtojo kodas (-ai)",null,"x"]
["Tiekėjų grupės narys, atstovaujantis arba vadovaujantis  tiekėjų grupei (pildoma, jei pasiūlymą teikia tiekėjų grupė)",null,"x"]
["Tiekėjo valdymo ar priežiūros organo narys (-iai) ar kitas asmuo (-ys), turintis (-ys) teisę atstovauti tiekėjui ar jį kontroliuoti, jo vardu priimti sprendimą, sudaryti sandorį",null,"x"]
["Tiekėjo arba atstovaujančio tiekėjų grupės nario adresas, telefono numeris, fakso numeris, el. paštas",null,"(8 5) 2688451, (8 5) 2688470, mediqlietuva@mediq.com"]
["Tiekėjo arba atstovaujančio tiekėjų grupės nario banko pavadinimas, banko kodas, sąskaitos Nr.",null,"Danske Bank A/S Lietuvos filialas, banko kodas 7400, Nr. LT35 7400 0427 2772 3810"]
["Asmens, įgalioto pasirašyti sutartį, vardas, pavardė, pareigos",null,"Giedrius Marcinkonis, generalinis direktorius"]
["Asmens, atsakingo už pirkimą, vardas, pavardė,  telefono numeris, el. paštas",null,"Inga Rinkevičienė, (8 5) 2688445, inga.rinkeviciene@mediq.com"]
[]
[]
[]
[]
[]
["Siūlomas pirkimo objektas visiškai atitinka pirkimo sąlygose nustatytus reikalavimus ir jo kaina yra:"]
[]
[]
[null,null,null,null,null,null,null,null,null,null,"","",""]
["Nr.","Pavadinimas","Maksimalus kiekis","Mato vienetas","Vieneto įkainis be PVM, Eur","Suma be PVM, Eur","Siūlomi produktai","Siūlomo produkto parametrai"]
["1.","Kateteriai bambos arterijos",null,null,null,null,null,null,null,""]
["1.1.","Kateteris bambos arterijos CH6",30,"vnt",null,{"$f":"IF(ISBLANK(E30),\"\", PRODUCT(C30,E30))","v":""}]
["1.1.1.","Ilgis 40cm ± 1cm"]
["1.1.2.","Centrimetrinis žymėjimas nuo 5 iki 25cm kas 1cm",null,null,null,null,null,null,null,""]
["1.1.3.","Pagamintas iš PVC be DEHP",null,null,null,null,null,null,null,null,null,""]
["1.1.4.","Skaidrus, rentgenokontrastinis, lankstus, termolabilus",null,null,null,null,null,null,null,null,null,""]
["1.1.5.","Naudojamas arterijos arba venos kateterizavimui",null,null,null,null,null,null,null,"","",""]
["1.1.6.","Su dviem šoninėm angom, su atviru užapvalintu distaliniu galiuku",null,null,null,null,null,null,null,"","",""]
["1.1.7.","Kateteris apsaugomas nuo pažeidimų tvirtoje sterilioje movoje",null,null,null,null,null,null,null,"","",""]
["1.2.","Kateteris bambos arterijos CH8",30,"vnt",null,{"$f":"IF(ISBLANK(E38),\"\", PRODUCT(C38,E38))","v":""}]
["1.2.1.","Ilgis 40cm ± 1cm"]
["1.2.2.","Centrimetrinis žymėjimas nuo 5 iki 25cm kas 1cm",null,null,null,null,null,null,null,""]
["1.2.3.","Pagamintas iš PVC be DEHP"]
["1.2.4.","Skaidrus, rentgenokontrastinis, lankstus, termolabilus",null,null,null,null,null,null,null,null,null,""]
["1.2.5.","Naudojamas arterijos arba venos kateterizavimui",null,null,null,null,null,null,null,"",null,""]
["1.2.6.","Su dviem šoninėm angom, su atviru užapvalintu distaliniu galiuku",null,null,null,null,null,null,null,null,null,""]
["1.2.7.","Kateteris apsaugomas nuo pažeidimų tvirtoje sterilioje movoje"]
[null,null,null,null,"Suma be PVM",{"$f":"IF(OR(F30=\"\", F30=\"\", F30=\"\", F30=\"\", F30=\"\", F30=\"\", F38=\"\", F38=\"\", F38=\"\", F38=\"\", F38=\"\", F38=\"\"),\"\",SUM(F30:F45))","v":""},{"$f":"IF(OR(F30=\"\", F30=\"\", F30=\"\", F30=\"\", F30=\"\", F30=\"\", F38=\"\", F38=\"\", F38=\"\", F38=\"\", F38=\"\", F38=\"\", F38=\"\"),\"Neužpildytos visų objektų kainos\",\"\")","v":"Neužpildytos visų objektų kainos"},null,null,"","",""]
[null,null,null,null,"PVM suma",null,null,null,null,"","",""]
[null,null,null,null,"Suma su PVM",{"$f":"IF(ISBLANK(F47), \"\", SUM(F46:F47))","v":""},null,null,null,"","",""]
[]
["2.","Kateteriai nefrostominiai pakeitimui"]
["2.1.","Kateteris nefrostominis pakeitimui Fr10",50,"vnt",null,{"$f":"IF(ISBLANK(E51),\"\", PRODUCT(C51,E51))","v":""}]
["2.1.1.","Su lenktu galu"]
["2.1.2.","Galiukas atviras"]
["2.1.3.","Styga įvedimui"]
["2.2.","Kateteris nefrostominis pakeitimui Fr12",50,"vnt",null,{"$f":"IF(ISBLANK(E55),\"\", PRODUCT(C55,E55))","v":""}]
["2.2.1.","Su lenktu galu"]
["2.2.2.","Galiukas atviras"]
["2.2.3.","Styga įvedimui"]
[null,null,null,null,"Suma be PVM",{"$f":"IF(OR(F51=\"\", F51=\"\", F51=\"\", F51=\"\", F51=\"\", F51=\"\", F55=\"\", F55=\"\", F55=\"\", F55=\"\", F55=\"\", F55=\"\"),\"\",SUM(F51:F58))","v":""},{"$f":"IF(OR(F51=\"\", F51=\"\", F51=\"\", F51=\"\", F51=\"\", F51=\"\", F55=\"\", F55=\"\", F55=\"\", F55=\"\", F55=\"\", F55=\"\", F55=\"\"),\"Neužpildytos visų objektų kainos\",\"\")","v":"Neužpildytos visų objektų kainos"}]
[null,null,null,null,"PVM suma"]
[null,null,null,null,"Suma su PVM",{"$f":"IF(ISBLANK(F60), \"\", SUM(F59:F60))","v":""}]
[]
["3.","Kateteriai nefrostominiai pakeitimui"]
["3.1.","Kateteris nefrostominis pakeitimui CH8",50,"vnt",null,{"$f":"IF(ISBLANK(E64),\"\", PRODUCT(C64,E64))","v":""}]
["3.1.1.","Kateteris pagamintas iš standaus alifatinio poliuretano"]
["3.1.2.","Su Luer Lock jungtimi"]
["3.1.3.","Ilgis 34 ± 1cm"]
["3.2.","Kateteris nefrostominis pakeitimui CH10",50,"vnt",null,{"$f":"IF(ISBLANK(E68),\"\", PRODUCT(C68,E68))","v":""}]
["3.2.1.","Kateteris pagamintas iš standaus alifatinio poliuretano"]
["3.2.2.","Su Luer Lock jungtimi"]
["3.2.3.","Ilgis 34 ± 1cm"]
[null,null,null,null,"Suma be PVM",{"$f":"IF(OR(F64=\"\", F64=\"\", F64=\"\", F64=\"\", F64=\"\", F64=\"\", F68=\"\", F68=\"\", F68=\"\", F68=\"\", F68=\"\", F68=\"\"),\"\",SUM(F64:F71))","v":""},{"$f":"IF(OR(F64=\"\", F64=\"\", F64=\"\", F64=\"\", F64=\"\", F64=\"\", F68=\"\", F68=\"\", F68=\"\", F68=\"\", F68=\"\", F68=\"\", F68=\"\"),\"Neužpildytos visų objektų kainos\",\"\")","v":"Neužpildytos visų objektų kainos"}]
[null,null,null,null,"PVM suma"]
[null,null,null,null,"Suma su PVM",{"$f":"IF(ISBLANK(F73), \"\", SUM(F72:F73))","v":""}]
[]
["4.","Vienkartinės polipektominės kilpos besikeisiančio diametro"]
["4.1.","Vienkartinės polipektominės kilpos besikeisiančio diametro",100,"vnt",null,{"$f":"IF(ISBLANK(E77),\"\", PRODUCT(C77,E77))","v":""}]
["4.1.1.","Kilpos, besikeičiančio diametro darbiniam kanalui 2.8mm+/-0,1"]
["4.1.2.","Elektrochirurginis prietaisas, skirtas suimti ir pjauti virškinamojo trakto audinius endoskopijos procedūros metu"]
["4.1.3.","Reguliuojant kilpos poziciją šarvo atžvilgiu turi būti galimybė keisti kilpos formą (ovali-šešiakampė-“deimanto“) ir dydį (plotis nuo 6 mm iki 30 mm, ilgis nuo 15 iki 55 mm )."]
["4.1.4.","Kilpa turi būti pagaminta iš standžios, plokščios vielos"]
["4.1.5.","Šarvo diametras 2,3 mm+/-0,1, ilgis 230 cm ± 5 cm"]
[null,null,null,null,"Suma be PVM",{"$f":"IF(OR(F77=\"\", F77=\"\", F77=\"\", F77=\"\", F77=\"\", F77=\"\"),\"\",SUM(F77:F82))","v":""},{"$f":"IF(OR(F77=\"\", F77=\"\", F77=\"\", F77=\"\", F77=\"\", F77=\"\", F77=\"\"),\"Neužpildytos visų objektų kainos\",\"\")","v":"Neužpildytos visų objektų kainos"}]
[null,null,null,null,"PVM suma"]
[null,null,null,null,"Suma su PVM",{"$f":"IF(ISBLANK(F84), \"\", SUM(F83:F84))","v":""}]
[]
["5.","Endoskopinis pjovimo įrankis"]
["5.1.","Endoskopinis pjovimo įrankis",50,"vnt",null,{"$f":"IF(ISBLANK(E88),\"\", PRODUCT(C88,E88))","v":""}]
["5.1.1.","Monofilamentinės standžios, plokščios, persuktos vielos pjovimo įrankis"]
["5.1.2.","Skirtas labai plokščių polipų šalinimui"]
["5.1.3.","Kilpos dydis 14-27 mm"]
[null,null,null,null,"Suma be PVM",{"$f":"IF(OR(F88=\"\", F88=\"\", F88=\"\", F88=\"\", F88=\"\", F88=\"\"),\"\",SUM(F88:F91))","v":""},{"$f":"IF(OR(F88=\"\", F88=\"\", F88=\"\", F88=\"\", F88=\"\", F88=\"\", F88=\"\"),\"Neužpildytos visų objektų kainos\",\"\")","v":"Neužpildytos visų objektų kainos"}]
[null,null,null,null,"PVM suma"]
[null,null,null,null,"Suma su PVM",{"$f":"IF(ISBLANK(F93), \"\", SUM(F92:F93))","v":""}]
[]
["6.","Tiesioginio siurbimo ir plovimo prietaisas endoskopui"]
["6.1.","Tiesioginio siurbimo ir plovimo prietaisas endoskopui",50,"vnt",null,{"$f":"IF(ISBLANK(E97),\"\", PRODUCT(C97,E97))","v":""}]
["6.1.1.","Prietaisas skirtas virškinamojo trakto tiesioginiam intensyviam siurbimui ir plovimui endoskopijos procedūros metu per endoskopo biopsijos/siurbimo kanalą"]
["6.1.2.","Prietaiso dėka turi būti įmanoma greitai įsiurbti didelį tūrį sunkai pašalinamų, klampių darinių, audinių (pvz. krešuliai, naviko masė), plovimui naudoti didelį kiekį skysčių"]
["6.1.3.","Naudojamo prietaiso veikimo laukas – priešais kontrolinę endoskopo galvutę"]
["6.1.4.","Vienkartinio naudojimo. Pagamintas iš plastiko, be latekso"]
[null,null,null,null,"Suma be PVM",{"$f":"IF(OR(F97=\"\", F97=\"\", F97=\"\", F97=\"\", F97=\"\", F97=\"\"),\"\",SUM(F97:F101))","v":""},{"$f":"IF(OR(F97=\"\", F97=\"\", F97=\"\", F97=\"\", F97=\"\", F97=\"\", F97=\"\"),\"Neužpildytos visų objektų kainos\",\"\")","v":"Neužpildytos visų objektų kainos"}]
[null,null,null,null,"PVM suma"]
[null,null,null,null,"Suma su PVM",{"$f":"IF(ISBLANK(F103), \"\", SUM(F102:F103))","v":""}]
[]
["7.","Endoskopinė kabučių sistema"]
["7.1.","Endoskopinė kabučių sistema",15,"vnt",null,{"$f":"IF(ISBLANK(E107),\"\", PRODUCT(C107,E107))","v":""}]
["7.1.1.","OVESCO OTSC sistemos rinkinys, skirtas audinių vientisumo atstatymui virškinamajame trakte"]
[null,null,null,null,"Suma be PVM",{"$f":"IF(OR(F107=\"\", F107=\"\", F107=\"\", F107=\"\", F107=\"\", F107=\"\"),\"\",SUM(F107:F108))","v":""},{"$f":"IF(OR(F107=\"\", F107=\"\", F107=\"\", F107=\"\", F107=\"\", F107=\"\", F107=\"\"),\"Neužpildytos visų objektų kainos\",\"\")","v":"Neužpildytos visų objektų kainos"}]
[null,null,null,null,"PVM suma"]
[null,null,null,null,"Suma su PVM",{"$f":"IF(ISBLANK(F110), \"\", SUM(F109:F110))","v":""}]
[]
["8.","Polipų gaudyklė"]
["8.1.","Polipų gaudyklė",100,"vnt",null,{"$f":"IF(ISBLANK(E114),\"\", PRODUCT(C114,E114))","v":""}]
["8.1.1.","Vienkartinio naudojimo, skirta Olympus sistemos pompai"]
[null,null,null,null,"Suma be PVM",{"$f":"IF(OR(F114=\"\", F114=\"\", F114=\"\", F114=\"\", F114=\"\", F114=\"\"),\"\",SUM(F114:F115))","v":""},{"$f":"IF(OR(F114=\"\", F114=\"\", F114=\"\", F114=\"\", F114=\"\", F114=\"\", F114=\"\"),\"Neužpildytos visų objektų kainos\",\"\")","v":"Neužpildytos visų objektų kainos"}]
[null,null,null,null,"PVM suma"]
[null,null,null,null,"Suma su PVM",{"$f":"IF(ISBLANK(F117), \"\", SUM(F116:F117))","v":""}]
[]
["9.","Vielos (prie rezektoskopo)"]
["9.1.","Vielos (prie rezektoskopo)",20,"vnt",null,{"$f":"IF(ISBLANK(E121),\"\", PRODUCT(C121,E121))","v":""}]
["9.1.1.","1:1 sukimo perdavimas"]
["9.1.2.","Dengtos hidrofiline danga nuo 0,032 iki 0,035“storio, nuo 150 iki 180cm ilgio"]
["9.1.3.","Galimi modeliai: plieno arba 100% nitinolio"]
["9.1.4.","Modelis skirtas naudoti per odą >100cm ilgio, >7cm lenktu arba tiesiu galu"]
["9.1.5.","Galiukas tiesus arba lenktas ne mažiau 3cm, netraumuojantis (lankstus arba kietas)"]
[null,null,null,null,"Suma be PVM",{"$f":"IF(OR(F121=\"\", F121=\"\", F121=\"\", F121=\"\", F121=\"\", F121=\"\"),\"\",SUM(F121:F126))","v":""},{"$f":"IF(OR(F121=\"\", F121=\"\", F121=\"\", F121=\"\", F121=\"\", F121=\"\", F121=\"\"),\"Neužpildytos visų objektų kainos\",\"\")","v":"Neužpildytos visų objektų kainos"}]
[null,null,null,null,"PVM suma"]
[null,null,null,null,"Suma su PVM",{"$f":"IF(ISBLANK(F128), \"\", SUM(F127:F128))","v":""}]
[]
["10.","Barono žiedai"]
["10.1.","Barono žiedai",400,"vnt",null,{"$f":"IF(ISBLANK(E132),\"\", PRODUCT(C132,E132))","v":""}]
["10.1.1.","Skirti hemoroidinių mazgų ligavimui"]
["10.1.2.","Ypač stiprūs, su lateksu"]
[null,null,null,null,"Suma be PVM",{"$f":"IF(OR(F132=\"\", F132=\"\", F132=\"\", F132=\"\", F132=\"\", F132=\"\"),\"\",SUM(F132:F134))","v":""},{"$f":"IF(OR(F132=\"\", F132=\"\", F132=\"\", F132=\"\", F132=\"\", F132=\"\", F132=\"\"),\"Neužpildytos visų objektų kainos\",\"\")","v":"Neužpildytos visų objektų kainos"}]
[null,null,null,null,"PVM suma"]
[null,null,null,null,"Suma su PVM",{"$f":"IF(ISBLANK(F136), \"\", SUM(F135:F136))","v":""}]
[]
["11.","Kilpa inokuliacinė"]
["11.1.","Kilpa inokuliacinė",20,"vnt",null,{"$f":"IF(ISBLANK(E140),\"\", PRODUCT(C140,E140))","v":""}]
["11.1.1.","Vienkartinės sterilios polistireno kilpos"]
["11.1.2.","Gale 1 ul (mikrona) kilpa, kitame gale polistireno adata"]
[null,null,null,null,"Suma be PVM",{"$f":"IF(OR(F140=\"\", F140=\"\", F140=\"\", F140=\"\", F140=\"\", F140=\"\"),\"\",SUM(F140:F142))","v":""},{"$f":"IF(OR(F140=\"\", F140=\"\", F140=\"\", F140=\"\", F140=\"\", F140=\"\", F140=\"\"),\"Neužpildytos visų objektų kainos\",\"\")","v":"Neužpildytos visų objektų kainos"}]
[null,null,null,null,"PVM suma"]
[null,null,null,null,"Suma su PVM",{"$f":"IF(ISBLANK(F144), \"\", SUM(F143:F144))","v":""}]
[]
["12.","Šviesolaidžiai lipolizei"]
["12.1.","Šviesolaidžiai lipolizei. Daugkartiniai",30,"vnt",null,{"$f":"IF(ISBLANK(E148),\"\", PRODUCT(C148,E148))","v":""}]
["12.1.1.","Tinkantys lazeriui modelis FOX 980mm arba pateikti lygiavertį lazerį panaudai"]
["12.1.2.","400-600µm šviesolaidis "]
[null,null,null,null,"Suma be PVM",{"$f":"IF(OR(F148=\"\", F148=\"\", F148=\"\", F148=\"\", F148=\"\", F148=\"\"),\"\",SUM(F148:F150))","v":""},{"$f":"IF(OR(F148=\"\", F148=\"\", F148=\"\", F148=\"\", F148=\"\", F148=\"\", F148=\"\"),\"Neužpildytos visų objektų kainos\",\"\")","v":"Neužpildytos visų objektų kainos"}]
[null,null,null,null,"PVM suma"]
[null,null,null,null,"Suma su PVM",{"$f":"IF(ISBLANK(F152), \"\", SUM(F151:F152))","v":""}]
[]
["13.","Silikoninės žarnelės"]
["13.1.","Silikoninės žarnelės",50,"vnt",null,{"$f":"IF(ISBLANK(E156),\"\", PRODUCT(C156,E156))","v":""}]
["13.1.1.","Vienkartinės, sterilios"]
["13.1.2.","Silikoninės žarnelės su slėgine galvute, skirtos skysčio padavimui hysteroskopijos metu"]
["13.1.3.","Tinkamos naudoti su ligoninės turima firmos „Karl Storz“ pompa „Hamau Endomat“ arba pateikti lygiaverčią pompą panaudai"]
[null,null,null,null,"Suma be PVM",{"$f":"IF(OR(F156=\"\", F156=\"\", F156=\"\", F156=\"\", F156=\"\", F156=\"\"),\"\",SUM(F156:F159))","v":""},{"$f":"IF(OR(F156=\"\", F156=\"\", F156=\"\", F156=\"\", F156=\"\", F156=\"\", F156=\"\"),\"Neužpildytos visų objektų kainos\",\"\")","v":"Neužpildytos visų objektų kainos"}]
[null,null,null,null,"PVM suma"]
[null,null,null,null,"Suma su PVM",{"$f":"IF(ISBLANK(F161), \"\", SUM(F160:F161))","v":""}]
[]
["14.","Apsauginė prilaikomoji pirštinė"]
["14.1.","Apsauginė prilaikomoji pirštinė M",50,"vnt",null,{"$f":"IF(ISBLANK(E165),\"\", PRODUCT(C165,E165))","v":""}]
["14.1.1.","Neleidžia pacientui susižeisti ar nuplėšti zondų, kateterių, vamzdelių."]
["14.1.2.","Tvirtinasi lipduko pagalba, galima tvirtinti prie lovos rėmo."]
["14.1.3.","Pagaminta iš minkšto poliesterio ir viskozės."]
["14.1.4.","Dydžiai M – riešo apimtis 24 cm ±1cm, plaštakos ilgis 20 cm ±1cm. "]
["14.2.","Apsauginė prilaikomoji pirštinė  L",50,"vnt",null,{"$f":"IF(ISBLANK(E170),\"\", PRODUCT(C170,E170))","v":""}]
["14.2.1.","Neleidžia pacientui susižeisti ar nuplėšti zondų, kateterių, vamzdelių."]
["14.2.2.","L – riešo apimtis 28 cm ± 1cm, plaštakos ilgis 23 cm ± 1cm."]
["14.2.3.","Skalbiama 40° laipsnių temperatūroje."]
["14.2.4.","Pažymėta CE ženklu"]
[null,null,null,null,"Suma be PVM",{"$f":"IF(OR(F165=\"\", F165=\"\", F165=\"\", F165=\"\", F165=\"\", F165=\"\", F170=\"\", F170=\"\", F170=\"\", F170=\"\", F170=\"\", F170=\"\"),\"\",SUM(F165:F174))","v":""},{"$f":"IF(OR(F165=\"\", F165=\"\", F165=\"\", F165=\"\", F165=\"\", F165=\"\", F170=\"\", F170=\"\", F170=\"\", F170=\"\", F170=\"\", F170=\"\", F170=\"\"),\"Neužpildytos visų objektų kainos\",\"\")","v":"Neužpildytos visų objektų kainos"}]
[null,null,null,null,"PVM suma"]
[null,null,null,null,"Suma su PVM",{"$f":"IF(ISBLANK(F176), \"\", SUM(F175:F176))","v":""}]
[]
["15.","PEG rinkinys CH18"]
["15.1.","PEG rinkinys CH18",60,"vnt",null,{"$f":"IF(ISBLANK(E180),\"\", PRODUCT(C180,E180))","v":""}]
["15.1.1.","Rinkinys perkutaninei endoskopinei gastrostomijai PEG: gastrostominis vamzdelis su integruota kilpa, vienkartinis, sterilus, rentgenokontrastinis, dydis CH18"]
["15.1.2.","Endoskopo kontrolėje, gastrostomos vamzdelis į skrandį įvedamas taikant „traukimo techniką“, su pritvirtintu vidiniu fiksatoriumi.Vidinio fiksatoriaus konstrukcija, turi būti tokia, kad būtų galima pašalinti PEG kateterį per pilvo sieną nenaudojant endoskopo.   Būtina  išorinė fiksavimo polkštelė, leidžianti PEG kateterį fiksuoti prie pilvo sienos."]
["15.1.3.","Rinkinyje turi būti punkcinė adata, ritinys su traukimo siūlu, dvigubos kilpos jungtis tarp traukimo siūlo ir gastrostomos vamzdelio."]
["15.1.4.","Perkančioji organizacija prašo pateikti šios pirkimo dalies pavyzdį "]
[null,null,null,null,"Suma be PVM",{"$f":"IF(OR(F180=\"\", F180=\"\", F180=\"\", F180=\"\", F180=\"\", F180=\"\"),\"\",SUM(F180:F184))","v":""},{"$f":"IF(OR(F180=\"\", F180=\"\", F180=\"\", F180=\"\", F180=\"\", F180=\"\", F180=\"\"),\"Neužpildytos visų objektų kainos\",\"\")","v":"Neužpildytos visų objektų kainos"}]
[null,null,null,null,"PVM suma"]
[null,null,null,null,"Suma su PVM",{"$f":"IF(ISBLANK(F186), \"\", SUM(F185:F186))","v":""}]
[]
["16.","PEG rinkinys CH20"]
["16.1.","PEG rinkinys CH20",20,"vnt",null,{"$f":"IF(ISBLANK(E190),\"\", PRODUCT(C190,E190))","v":""}]
["16.1.1.","Rinkinys perkutaninei endoskopinei gastrostomijai PEG: gastrostominis vamzdelis su integruota kilpa, vienkartinis, sterilus, rentgenokontrastinis, dydis CH20"]
["16.1.2.","Endoskopo kontrolėje, gastrostomos vamzdelis į skrandį įvedamas taikant „traukimo techniką“, su pritvirtintu vidiniu fiksatoriumi.Vidinio fiksatoriaus konstrukcija, turi būti tokia, kad būtų galima pašalinti PEG kateterį per pilvo sieną nenaudojant endoskopo.   Būtina  išoriėe fiksavimo polkštelė, leidžianti PEG kateterį fiksuoti prie pilvo sienos."]
["16.1.3.","Rinkinyje turi būti punkcinė adata, ritinys su traukimo siūlu, dvigubos kilpos jungtis tarp traukimo siūlo ir gastrostomos vamzdelio."]
["16.1.4.","Perkančioji organizacija prašo pateikti šios pirkimo dalies pavyzdį"]
[null,null,null,null,"Suma be PVM",{"$f":"IF(OR(F190=\"\", F190=\"\", F190=\"\", F190=\"\", F190=\"\", F190=\"\"),\"\",SUM(F190:F194))","v":""},{"$f":"IF(OR(F190=\"\", F190=\"\", F190=\"\", F190=\"\", F190=\"\", F190=\"\", F190=\"\"),\"Neužpildytos visų objektų kainos\",\"\")","v":"Neužpildytos visų objektų kainos"}]
[null,null,null,null,"PVM suma"]
[null,null,null,null,"Suma su PVM",{"$f":"IF(ISBLANK(F196), \"\", SUM(F195:F196))","v":""}]
[]
["17.","Adatos odos dūrio mėginiams atlikti PLASTIKINĖS"]
["17.1.","Adatos odos dūrio mėginiams atlikti PLASTIKINĖS",6000,"vnt",null,{"$f":"IF(ISBLANK(E200),\"\", PRODUCT(C200,E200))","v":""}]
["17.1.1.","Adata dūrio mėginiui turi būti plastikinė"]
["17.1.2.","Perkančioji organizacija prašo pateikti šios pirkimo dalies pavyzdį"]
[null,null,null,null,"Suma be PVM",{"$f":"IF(OR(F200=\"\", F200=\"\", F200=\"\", F200=\"\", F200=\"\", F200=\"\"),\"\",SUM(F200:F202))","v":""},{"$f":"IF(OR(F200=\"\", F200=\"\", F200=\"\", F200=\"\", F200=\"\", F200=\"\", F200=\"\"),\"Neužpildytos visų objektų kainos\",\"\")","v":"Neužpildytos visų objektų kainos"}]
[null,null,null,null,"PVM suma"]
[null,null,null,null,"Suma su PVM",{"$f":"IF(ISBLANK(F204), \"\", SUM(F203:F204))","v":""}]
[]
["18.","Priemonės miografiniam ir neurografiniam  tyrimui"]
["18.1.","Vienkartinis paviršinis elektrodas",700,"vnt",null,{"$f":"IF(ISBLANK(E208),\"\", PRODUCT(C208,E208))","v":""}]
["18.1.1.","Kiekvienas elektrodas turi sidabro- sidabro chlorido registruojantį paviršių su limpamu hidro-geliniu ir galimu perklijavimu tam pačiam pacientui"]
["18.1.2.","Elektrodo registruojanti diametras 9mm x 6mm+/-0,1mm"]
["18.1.3.","Elektrodo laido ilgis 10 cm+/-2cm"]
["18.1.4.","Elektrodo laido jungtis 0,7mm female TP+/-0,1 mm"]
["18.2.","Vienkartinis įžeminimo elektrodas be laido",400,"vnt",null,{"$f":"IF(ISBLANK(E213),\"\", PRODUCT(C213,E213))","v":""}]
["18.2.1.","Lipduko tipo gelinis limpamasis elektrodas"]
["18.2.2.","Elektrodo diametras 40mm x 20mm arba 30mm x 25mm+/-0,1"]
["18.3.","Ekranuotas kabelis vienkartiniams paviršiniams geliniams elektrodams",2,"vnt",null,{"$f":"IF(ISBLANK(E216),\"\", PRODUCT(C216,E216))","v":""}]
["18.3.1.","Ekranuotas kabelis yra su dviem laidais - vienkartiniams geliniams ir registruojantiems elektrodams anodui ir katodui"]
["18.3.2.","Kabelio ilgis 1 m.+/-10 cm Elekrodų jungtis 2 x 0,7mm.+/-0,1 Kabelio jungtis prie aparato 5 pole DIN"]
["18.4.","Ekranuotas kabelis vienkartiniams paviršiniams geliniams elektrodams",1,"vnt",null,{"$f":"IF(ISBLANK(E219),\"\", PRODUCT(C219,E219))","v":""}]
["18.4.1.","Ekranuotas kabelis yra su dviem laidais - vienkartiniams geliniams ir registruojantiems elektrodams anodui ir katodui"]
["18.4.2.","Kabelio ilgis 2m. +/- 10 cm. Elektrodų jungtis 2 x 0,7mm. +/-0,1 Kabelio jungtis prie aparato 5 Pole DIN"]
["18.5.","Laidas įžeminimui",4,"vnt",null,{"$f":"IF(ISBLANK(E222),\"\", PRODUCT(C222,E222))","v":""}]
["18.5.1.","Laidas, \"krokodilo\" gnybto tipo, skirtas vienkartiniams geliniams limpamiesiems ir belaidžiams įžeminimo elektrodams"]
["18.5.2.","Laidas nenekranuotas"]
["18.5.3.","Laido ilgis 80 cm. +/-10 cm Laido jungtis prie elektrodo - \"krokodilo\" gnybto tipo, žalias"]
["18.5.4.","Laido jungtis prie aparato 1,5 mm +/- 0,1 mm female TP. Laidas nenekranuotas"]
["18.6.","Rankinis stimuliuojantis elektrodas neurografijai",1,"vnt",null,{"$f":"IF(ISBLANK(E227),\"\", PRODUCT(C227,E227))","v":""}]
["18.6.1.","Rankinis stimuliuojantis elektrodas skirtas bipoliarinei nervo stimuliacijai"]
["18.6.2.","Ilgis 1,5m+/- 10 cm"]
["18.6.3.","Jungtis prie aparato 5 pole DIN"]
["18.6.4.","Tiesus. Su intensyvumo ir katodo bei anodo perjungimo kontrole"]
["18.7.","Vienkartiniai koncentriniai adatiniai EMG skirti elektrodai",50,"vnt",null,{"$f":"IF(ISBLANK(E232),\"\", PRODUCT(C232,E232))","v":""}]
["18.7.1.","Adatinio EMG elektrodo skirti bipoliariniam EMG registravimui"]
["18.7.2.","Adatinio EMG elektrodo parametrai 37 mm+/-0,1 mm x 0,46mm+/-0,01 mm  (26G)"]
["18.8.","Fetrinio tipo daugkartiniai keičiami elektrodai, skirti sensorių potencialų registravimui",300,"vnt",null,{"$f":"IF(ISBLANK(E235),\"\", PRODUCT(C235,E235))","v":""}]
["18.8.1.","Elektrodų ilgis 7mm, diametras 6mm+/-0,5 mm"]
[null,null,null,null,"Suma be PVM",{"$f":"IF(OR(F208=\"\", F208=\"\", F208=\"\", F208=\"\", F208=\"\", F208=\"\", F213=\"\", F213=\"\", F213=\"\", F213=\"\", F213=\"\", F213=\"\", F216=\"\", F216=\"\", F216=\"\", F216=\"\", F216=\"\", F216=\"\", F219=\"\", F219=\"\", F219=\"\", F219=\"\", F219=\"\", F219=\"\", F222=\"\", F222=\"\", F222=\"\", F222=\"\", F222=\"\", F222=\"\", F227=\"\", F227=\"\", F227=\"\", F227=\"\", F227=\"\", F227=\"\", F232=\"\", F232=\"\", F232=\"\", F232=\"\", F232=\"\", F232=\"\", F235=\"\", F235=\"\", F235=\"\", F235=\"\", F235=\"\", F235=\"\"),\"\",SUM(F208:F236))","v":""},{"$f":"IF(OR(F208=\"\", F208=\"\", F208=\"\", F208=\"\", F208=\"\", F208=\"\", F213=\"\", F213=\"\", F213=\"\", F213=\"\", F213=\"\", F213=\"\", F216=\"\", F216=\"\", F216=\"\", F216=\"\", F216=\"\", F216=\"\", F219=\"\", F219=\"\", F219=\"\", F219=\"\", F219=\"\", F219=\"\", F222=\"\", F222=\"\", F222=\"\", F222=\"\", F222=\"\", F222=\"\", F227=\"\", F227=\"\", F227=\"\", F227=\"\", F227=\"\", F227=\"\", F232=\"\", F232=\"\", F232=\"\", F232=\"\", F232=\"\", F232=\"\", F235=\"\", F235=\"\", F235=\"\", F235=\"\", F235=\"\", F235=\"\", F235=\"\"),\"Neužpildytos visų objektų kainos\",\"\")","v":"Neužpildytos visų objektų kainos"}]
[null,null,null,null,"PVM suma"]
[null,null,null,null,"Suma su PVM",{"$f":"IF(ISBLANK(F238), \"\", SUM(F237:F238))","v":""}]
[]
["19.","Reguliatorius skysčio  srauto"]
["19.1.","Reguliatorius skysčio  srauto",210,"vnt",null,{"$f":"IF(ISBLANK(E242),\"\", PRODUCT(C242,E242))","v":""}]
["19.1.1.","Gradacijos skalė 0-250ml/h"]
["19.1.2.","Įkomponuotas į 150cm+/-10 cm ilgio infuzinę sistemą, turinčią spaustuką infuzijai stabdyti bei Luer Lock tipo konektorių"]
[null,null,null,null,"Suma be PVM",{"$f":"IF(OR(F242=\"\", F242=\"\", F242=\"\", F242=\"\", F242=\"\", F242=\"\"),\"\",SUM(F242:F244))","v":""},{"$f":"IF(OR(F242=\"\", F242=\"\", F242=\"\", F242=\"\", F242=\"\", F242=\"\", F242=\"\"),\"Neužpildytos visų objektų kainos\",\"\")","v":"Neužpildytos visų objektų kainos"}]
[null,null,null,null,"PVM suma"]
[null,null,null,null,"Suma su PVM",{"$f":"IF(ISBLANK(F246), \"\", SUM(F245:F246))","v":""}]
[]
["20.","Saugūs automatiniai lancetai - adatėlės"]
["20.1.","Saugūs automatiniai lancetai - adatėlės naujagimiams",2600,"vnt",7.0000000000000007E-2,{"$f":"IF(ISBLANK(E250),\"\", PRODUCT(C250,E250))","v":182.00000000000003},"7143, Acti-Lance, HTL-Strefa"]
["20.1.1.","Skirti kapiliarinio kraujo mėginio paėmimui iš kulniuko genetiniams tyrimams",null,null,null,null,null,"Skirti bet kokiam kapiliariniam kraujui, įskaitant ir iš kulniuko. "]
["20.1.2.","Su automatiniu dūrio mechanizmu, kurio dėka iššauta adatėlė sugrįžta ir pasisliape korpuse",null,null,null,null,null,"Su automatiniu dūrio mechanizmu, kurio dėka adatėlė iššsauna ir pasislepia korpuse."]
["20.1.3.","Dūrio gylis ne mažiau 2,0 mm 21G, dūrio perimetras 0,8mm+/-0,1 mm",null,null,null,null,null,"Dūrio gylis 2mm 17G."]
[null,null,null,null,"Suma be PVM",{"$f":"IF(OR(F250=\"\", F250=\"\", F250=\"\", F250=\"\", F250=\"\", F250=\"\"),\"\",SUM(F250:F253))","v":182.00000000000003},{"$f":"IF(OR(F250=\"\", F250=\"\", F250=\"\", F250=\"\", F250=\"\", F250=\"\", F250=\"\"),\"Neužpildytos visų objektų kainos\",\"\")","v":""}]
[null,null,null,null,"PVM suma",9.1]
[null,null,null,null,"Suma su PVM",{"$f":"IF(ISBLANK(F255), \"\", SUM(F254:F255))","v":191.10000000000002}]
[]
["21.","Adatos punkcijoms 18G"]
["21.1.","Adata punkcijoms 18G",600,"vnt",null,{"$f":"IF(ISBLANK(E259),\"\", PRODUCT(C259,E259))","v":""}]
["21.1.1.","Sterili, vienkartinė"]
["21.1.2.","Matmenys 1,2mm x 80mm +/-10 mm"]
[null,null,null,null,"Suma be PVM",{"$f":"IF(OR(F259=\"\", F259=\"\", F259=\"\", F259=\"\", F259=\"\", F259=\"\"),\"\",SUM(F259:F261))","v":""},{"$f":"IF(OR(F259=\"\", F259=\"\", F259=\"\", F259=\"\", F259=\"\", F259=\"\", F259=\"\"),\"Neužpildytos visų objektų kainos\",\"\")","v":"Neužpildytos visų objektų kainos"}]
[null,null,null,null,"PVM suma"]
[null,null,null,null,"Suma su PVM",{"$f":"IF(ISBLANK(F263), \"\", SUM(F262:F263))","v":""}]
[]
["22.","Parafinas bekvapis"]
["22.1.","Parafinas bekvapis",60,"kg",null,{"$f":"IF(ISBLANK(E267),\"\", PRODUCT(C267,E267))","v":""}]
["22.1.1.","Skirtas profesionalioms parafino vonelėms. Minkštas, lankstus, bespalvis, be nuosėdų, lengvai pašalinamas nuo odos"]
["22.1.2.","Parafino lydimosi temparatūra 45° - 55°"]
[null,null,null,null,"Suma be PVM",{"$f":"IF(OR(F267=\"\", F267=\"\", F267=\"\", F267=\"\", F267=\"\", F267=\"\"),\"\",SUM(F267:F269))","v":""},{"$f":"IF(OR(F267=\"\", F267=\"\", F267=\"\", F267=\"\", F267=\"\", F267=\"\", F267=\"\"),\"Neužpildytos visų objektų kainos\",\"\")","v":"Neužpildytos visų objektų kainos"}]
[null,null,null,null,"PVM suma"]
[null,null,null,null,"Suma su PVM",{"$f":"IF(ISBLANK(F271), \"\", SUM(F270:F271))","v":""}]
[]
["23.","Testas nėštumo nustatymui -  juostelė "]
["23.1.","Testas nėštumo nustatymui -  juostelė ",100,"vnt",0.2,{"$f":"IF(ISBLANK(E275),\"\", PRODUCT(C275,E275))","v":20},"ABT-FT-B1, AccuBio Tech Co.,Ltd"]
["23.1.1.","Ankstyvojo nėštumo nustatymo juostelė skirta hormono (ŽCG- žmogaus chorioninio gonadotropino hormonas) greitam nustatymui šlapime",null,null,null,null,null,"Ankstyvojo nėštumo nustatymo juostelė kasetėje skirat hormono ŽGS greitam nustatymui šlapime"]
["23.1.2.","Testo jautrumas:  nemažesnis nei 10 mIU",null,null,null,null,null,"Testo jautrumas 25mlU"]
[null,null,null,null,"Suma be PVM",{"$f":"IF(OR(F275=\"\", F275=\"\", F275=\"\", F275=\"\", F275=\"\", F275=\"\"),\"\",SUM(F275:F277))","v":20},{"$f":"IF(OR(F275=\"\", F275=\"\", F275=\"\", F275=\"\", F275=\"\", F275=\"\", F275=\"\"),\"Neužpildytos visų objektų kainos\",\"\")","v":""}]
[null,null,null,null,"PVM suma",1]
[null,null,null,null,"Suma su PVM",{"$f":"IF(ISBLANK(F279), \"\", SUM(F278:F279))","v":21}]
[]
["24.","Pirštinės nitrilinės S/M/L"]
["24.1.","Pirštinės nitrilinės S/M/L",600000,"vnt",null,{"$f":"IF(ISBLANK(E283),\"\", PRODUCT(C283,E283))","v":""}]
["24.1.1.","Paviršius - tekstūriniai pirštų galai"]
["24.1.2.","Be pudros. Forma: tinka ir kairei ir dešinei rankai"]
["24.1.3.","Diagnostinės - apsauginės, nesterilios. Tinkančios medicinos personalui."]
[null,null,null,null,"Suma be PVM",{"$f":"IF(OR(F283=\"\", F283=\"\", F283=\"\", F283=\"\", F283=\"\", F283=\"\"),\"\",SUM(F283:F286))","v":""},{"$f":"IF(OR(F283=\"\", F283=\"\", F283=\"\", F283=\"\", F283=\"\", F283=\"\", F283=\"\"),\"Neužpildytos visų objektų kainos\",\"\")","v":"Neužpildytos visų objektų kainos"}]
[null,null,null,null,"PVM suma"]
[null,null,null,null,"Suma su PVM",{"$f":"IF(ISBLANK(F288), \"\", SUM(F287:F288))","v":""}]
[]
["25.","Neutralus buferinizuotas formalinas 10%"]
["25.1.","Neutralus buferinizuotas formalinas 10%",200,"L",null,{"$f":"IF(ISBLANK(E292),\"\", PRODUCT(C292,E292))","v":""}]
["25.1.1.","Sufasuotas po 1000ml +/- 200ml"]
[null,null,null,null,"Suma be PVM",{"$f":"IF(OR(F292=\"\", F292=\"\", F292=\"\", F292=\"\", F292=\"\", F292=\"\"),\"\",SUM(F292:F293))","v":""},{"$f":"IF(OR(F292=\"\", F292=\"\", F292=\"\", F292=\"\", F292=\"\", F292=\"\", F292=\"\"),\"Neužpildytos visų objektų kainos\",\"\")","v":"Neužpildytos visų objektų kainos"}]
[null,null,null,null,"PVM suma"]
[null,null,null,null,"Suma su PVM",{"$f":"IF(ISBLANK(F295), \"\", SUM(F294:F295))","v":""}]
[]
["26.","Paciento paklotų rinkinys"]
["26.1.","Paciento paklotas 370 x 300 cm",500,"vnt",null,{"$f":"IF(ISBLANK(E299),\"\", PRODUCT(C299,E299))","v":""}]
["26.1.1.","370 x 300cm, pagamintas iš ne mažiau kaip trijų sluoksnių: viršutinis iš neaustinė medžiagos, gerai sugeriantis skysčius; vidurinis - polietileno, neparalaidus; apatinis - apsauginis neaustinės medžiagos sluoksnis. Apklotas turi 4 cm elastinę angą ir papildomą sugeriamajį sluoksnį kritinėje zonoje, ne mažesnį nei 80 x 100 cm"]
["26.1.2.","Marlinės skaros 10 x 20 cm +-/2 cm pakuotėje-10 vnt. +/- 2 vnt."]
["26.1.3.","Standartinės apsaugos chirurginis chalatas L dydis "]
["26.1.4.","Sustiprintos apsaugos chirurginis chalatas  XL dydis "]
["26.1.5.","Leistinas apklotų dydžių nuokrypis +/- 10cm"]
[null,null,null,null,"Suma be PVM",{"$f":"IF(OR(F299=\"\", F299=\"\", F299=\"\", F299=\"\", F299=\"\", F299=\"\"),\"\",SUM(F299:F304))","v":""},{"$f":"IF(OR(F299=\"\", F299=\"\", F299=\"\", F299=\"\", F299=\"\", F299=\"\", F299=\"\"),\"Neužpildytos visų objektų kainos\",\"\")","v":"Neužpildytos visų objektų kainos"}]
[null,null,null,null,"PVM suma"]
[null,null,null,null,"Suma su PVM",{"$f":"IF(ISBLANK(F306), \"\", SUM(F305:F306))","v":""}]
[]
["27.","Bipoliariniai elektrodai artroskopinei peties ir kelio sąnarių elektrochirurgijai"]
["27.1.","Bipoliariniai elektrodai artroskopinei peties ir kelio sąnarių elektrochirurgijai",300,"vnt",null,{"$f":"IF(ISBLANK(E310),\"\", PRODUCT(C310,E310))","v":""}]
["27.1.1.","Elektrodai vienkartinio naudojimo, naudojami artroskopinių procedūrų metu kelio , peties sąnariuose"]
["27.1.2.","Veikia biopoliarinės elektrochirurgijos principu elektrolito terpėje, atlieka audinių abliaciją (išgarinimą), koaguliaciją, kontūravimą ir pjovimą"]
["27.1.3.","Grįžtamasis elektrodo polius yra ant elektrodo ašies, nereikia jo orientuoti, kad dirbant liestųsi su audiniais, nereikia įžeminti paciento"]
["27.1.4.","Galimybė dirbti žemose temperatūros 40-70° C su didelio tūrio atsiurbimo, abliacijos ir koaguliacijos funkcijomis"]
["27.1.5.","Platus pasirinkimas elektrodų ribose: skersmuo  nuo 3,0 mm iki 4,5 mm, ne mažiau kaip iš 9 skirtingų tipų"]
["27.1.6.","Elektrodai skirtingų darbinių kampų kelio ir peties artroskopijoms turi būti sekančių dydžių: Tiesaus kampo elektrodas diam.- 3,5mm - L-15cm su atsiurbimo funkcija, Tiesaus kampo elektrodas diam.- 3,5mm - L-15 cm be atsiurbimo funkcijos. Kampinis elektrodas 90°- 3,5mm- L13 cm su atsiurbimo funkcija, Kampinis elektrodas 90°-4,5mm - L-13 cm be atsiurbimo funkcijos, Kampinis elektrodas 45°-3,5mm - L-15 cm su atsiurbimo funkcija, Kampinis elektrodas  45°-3,5mm - L-15 cm be atsiurbimo funkcija, Kampinis elektrodas  30°-3,0mm - L-13 cm su atsiurbimo funkcija, Kampinis elektrodas  30°-3,0mm - L-13 cm be atsiurbimo funkcija, Pjovimo elektrodas  30°-3,9mm - L-13 cm be atsiurbimo funkcijos."]
["27.1.7.","Darbui su elektrodais ligoninei panaudai pateikimas elektrochirurginis generatorius"]
[null,null,null,null,"Suma be PVM",{"$f":"IF(OR(F310=\"\", F310=\"\", F310=\"\", F310=\"\", F310=\"\", F310=\"\"),\"\",SUM(F310:F317))","v":""},{"$f":"IF(OR(F310=\"\", F310=\"\", F310=\"\", F310=\"\", F310=\"\", F310=\"\", F310=\"\"),\"Neužpildytos visų objektų kainos\",\"\")","v":"Neužpildytos visų objektų kainos"}]
[null,null,null,null,"PVM suma"]
[null,null,null,null,"Suma su PVM",{"$f":"IF(ISBLANK(F319), \"\", SUM(F318:F319))","v":""}]
[]
["28.","Artroskopo optika"]
["28.1.","Artroskopo optika",10,"vnt",null,{"$f":"IF(ISBLANK(E323),\"\", PRODUCT(C323,E323))","v":""}]
["28.1.1.","Autoklavuojama su dviejų vožtuvų greito sujungimo užsirakinančiu troakaru (quick Latch)"]
["28.1.2.","Skersmuo 4,0 mm ± 0,1 mm, darbinis ilgis 170 mm ±  2 mm"]
["28.1.3.","Stebėjimo kryptis (instrumento išilginės ašies atžvilgiu) 30°"]
["28.1.4.","Autoklavuojama 132° C temperatūroje +/-2° C"]
["28.2.","Greito sujungimo užsirakinantis troakaras HD optikai",10,"vnt",null,{"$f":"IF(ISBLANK(E328),\"\", PRODUCT(C328,E328))","v":""}]
["28.2.1.","Skirtas  4,0 mm ± 0,1 mm skersmens, didelės raiškos (HD) artroskopo optikai."]
["28.2.2.","Įstačius artroskopo optiką į troakarą - ji automatiškai užsirakinama. Optika atlaisvinama paspaudus mygtuką"]
["28.2.3.","Su dviem vožtuvais, padidintam vandens srautui (High Flow)"]
["28.2.4.","Komplektuojama su buku smeigu"]
["28.3.","Obturatorius bukas, suderintas su diagnostine kaniule (28.2 objekte kartu yra)",10,"vnt",null,{"$f":"IF(ISBLANK(E333),\"\", PRODUCT(C333,E333))","v":""}]
["28.3.1.","Autoklavuojamas, kartu yra  28.2 objekte"]
["28.4.","Stiklo pluošto šviesolaidis",10,"vnt",null,{"$f":"IF(ISBLANK(E335),\"\", PRODUCT(C335,E335))","v":""}]
["28.4.1.","Skaidrus apvalkalas, per kurį galima matyti stilo pluošto pažeidimus, skersmuo ne mažiau 5mm, ilgis ne mažiau 2,5 m, "]
["28.4.2.","Šviesolaidis neatsiejamai sujungtas su 90° antgaliu sujungimui su optika, komplektuojamas su visais reikalingai antgaliais sistemos sujungimui"]
["28.4.3.","Autoklavuojamas"]
[null,null,null,null,"Suma be PVM",{"$f":"IF(OR(F323=\"\", F323=\"\", F323=\"\", F323=\"\", F323=\"\", F323=\"\", F328=\"\", F328=\"\", F328=\"\", F328=\"\", F328=\"\", F328=\"\", F333=\"\", F333=\"\", F333=\"\", F333=\"\", F333=\"\", F333=\"\", F335=\"\", F335=\"\", F335=\"\", F335=\"\", F335=\"\", F335=\"\"),\"\",SUM(F323:F338))","v":""},{"$f":"IF(OR(F323=\"\", F323=\"\", F323=\"\", F323=\"\", F323=\"\", F323=\"\", F328=\"\", F328=\"\", F328=\"\", F328=\"\", F328=\"\", F328=\"\", F333=\"\", F333=\"\", F333=\"\", F333=\"\", F333=\"\", F333=\"\", F335=\"\", F335=\"\", F335=\"\", F335=\"\", F335=\"\", F335=\"\", F335=\"\"),\"Neužpildytos visų objektų kainos\",\"\")","v":"Neužpildytos visų objektų kainos"}]
[null,null,null,null,"PVM suma"]
[null,null,null,null,"Suma su PVM",{"$f":"IF(ISBLANK(F340), \"\", SUM(F339:F340))","v":""}]
[]
["29.","Geležtės  osciluojančio pjovimo pjūklui"]
["29.1.","Geležtės osciliuojančio pjovimo pjūklui, stambių kaulų osteosintezei",10,"vnt",null,{"$f":"IF(ISBLANK(E344),\"\", PRODUCT(C344,E344))","v":""}]
["29.1.1.","Storis 0,64 mm  ± 0,02 mm"]
["29.1.2.","Plotis 29 mm± 1 mm"]
["29.1.3.","Ilgis 60 mm ± 5 mm"]
["29.1.4.","Sterilioje pakuotėje"]
["29.1.5.","Geležtės turi tikti ligoninėje esančiai Conmed Linvatec Hall 50 sistemai arba pateikti lygiaverčią sistemą panaudai"]
["29.2.","Geležtės osciliuojančio pjovimo pjūklui, stambių kaulų osteosintezei",30,"vnt",null,{"$f":"IF(ISBLANK(E350),\"\", PRODUCT(C350,E350))","v":""}]
["29.2.1.","Storis 0,80 mm  ± 0,02 mm"]
["29.2.2.","Plotis 19mm  ± 1 mm"]
["29.2.3.","Ilgis 40mm  ± 5 mm"]
["29.2.4.","Sterilioje pakuotėje"]
["29.2.5.","Geležtės turi tikti ligoninėje esančiai Conmed Linvatec Hall 50 sistemai"]
["29.3.","Geležtės osciliuojančio pjovimo pjūklui, stambių kaulų osteosintezei",10,"vnt",null,{"$f":"IF(ISBLANK(E356),\"\", PRODUCT(C356,E356))","v":""}]
["29.3.1.","Storis 0,89 mm  ± 0,02 mm"]
["29.3.2.","Plotis 12,5mm  ± 1 mm"]
["29.3.3.","Ilgis 90 mm  ± 10 mm"]
["29.3.4.","Sterilioje pakuotėje"]
["29.3.5.","Geležtės turi tikti ligoninėje esančiai Conmed Linvatec Hall 50 sistemai"]
["29.4.","Geležtės osciliuojančio pjovimo pjūklui, stambių kaulų osteosintezei",30,"vnt",null,{"$f":"IF(ISBLANK(E362),\"\", PRODUCT(C362,E362))","v":""}]
["29.4.1.","Storis 0,89 mm  ± 0,02 mm"]
["29.4.2.","Plotis 13,5 mm  ± 1 mm"]
["29.4.3.","Ilgis 60 mm  ± 10 mm"]
["29.4.4.","Sterilioje pakuotėje"]
["29.4.5.","Geležtės turi tikti ligoninėje esančiai Conmed Linvatec Hall 50 sistemai"]
["29.5.","Geležtės osciliuojančio pjovimo pjūklui, stambių kaulų osteosintezei",30,"vnt",null,{"$f":"IF(ISBLANK(E368),\"\", PRODUCT(C368,E368))","v":""}]
["29.5.1.","Storis 0,89 mm  ± 0,02 mm"]
["29.5.2.","Plotis 20 mm  ± 1 mm"]
["29.5.3.","Ilgis 67 mm  ± 5 mm"]
["29.5.4.","Sterilioje pakuotėje"]
["29.5.5.","Geležtės turi tikti ligoninėje esančiai Conmed Linvatec Hall 50 sistemai"]
["29.6.","Geležtės osciliuojančio pjovimo pjūklui, stambių kaulų osteosintezei",30,"vnt",null,{"$f":"IF(ISBLANK(E374),\"\", PRODUCT(C374,E374))","v":""}]
["29.6.1.","Storis 0,89 mm  ± 0,02 mm"]
["29.6.2.","Plotis 20 mm  ± 1 mm"]
["29.6.3.","Ilgis 84 mm  ± 11 mm"]
["29.6.4.","Sterilioje pakuotėje"]
["29.6.5.","Geležtės turi tikti ligoninėje esančiai Conmed Linvatec Hall 50 sistemai"]
["29.7.","Geležtės osciliuojančio pjovimo pjūklui, stambių kaulų osteosintezei",30,"vnt",null,{"$f":"IF(ISBLANK(E380),\"\", PRODUCT(C380,E380))","v":""}]
["29.7.1.","Storis 0,89 mm  ± 0,02 mm"]
["29.7.2.","Plotis 32 mm  ± 2 mm"]
["29.7.3.","Ilgis 64 mm  ± 5 mm"]
["29.7.4.","Sterilioje pakuotėje"]
["29.7.5.","Geležtės turi tikti ligoninėje esančiai Conmed Linvatec Hall 50 sistemai"]
["29.8.","Geležtės osciliuojančio pjovimo pjūklui, stambių kaulų osteosintezei",40,"vnt",null,{"$f":"IF(ISBLANK(E386),\"\", PRODUCT(C386,E386))","v":""}]
["29.8.1.","Storis 0,89 mm  ± 0,02 mm"]
["29.8.2.","Plotis 49 mm  ± 2 mm"]
["29.8.3.","Ilgis 64 mm  ± 5 mm"]
["29.8.4.","Sterilioje pakuotėje"]
["29.8.5.","Geležtės turi tikti ligoninėje esančiai Conmed Linvatec Hall 50 sistemai"]
["29.9.","Geležtės osciliuojančio pjovimo pjūklui, stambių kaulų osteosintezei",10,"vnt",null,{"$f":"IF(ISBLANK(E392),\"\", PRODUCT(C392,E392))","v":""}]
["29.9.1.","Storis 1,00 mm  ± 0,02 mm"]
["29.9.2.","Plotis 25 mm  ± 1 mm"]
["29.9.3.","Ilgis 95 mm  ± 5 mm"]
["29.9.4.","Sterilioje pakuotėje"]
["29.9.5.","Geležtės turi tikti ligoninėje esančiai Conmed Linvatec Hall 50 sistemai"]
["29.10.","Geležtės osciliuojančio pjovimo pjūklui, stambių kaulų osteosintezei",10,"vnt",null,{"$f":"IF(ISBLANK(E398),\"\", PRODUCT(C398,E398))","v":""}]
["29.10.1.","Storis 1,05 mm  ± 0,02 mm"]
["29.10.2.","Plotis 12 mm  ± 1 mm"]
["29.10.3.","Ilgis 75 mm  ± 5 mm"]
["29.10.4.","Sterilioje pakuotėje"]
["29.10.5.","Geležtės turi tikti ligoninėje esančiai Conmed Linvatec Hall 50 sistemai"]
["29.11.","Geležtės osciliuojančio pjovimo pjūklui, stambių kaulų osteosintezei",50,"vnt",null,{"$f":"IF(ISBLANK(E404),\"\", PRODUCT(C404,E404))","v":""}]
["29.11.1.","Storis 1,25 mm  ± 0,02 mm"]
["29.11.2.","Plotis 10 mm  ± 1 mm"]
["29.11.3.","Ilgis 90 mm  ± 5 mm"]
["29.11.4.","Sterilioje pakuotėje"]
["29.11.5.","Geležtės turi tikti ligoninėje esančiai Conmed Linvatec Hall 50 sistemai"]
["29.12.","Geležtės osciliuojančio pjovimo pjūklui, stambių kaulų osteosintezei",50,"vnt",null,{"$f":"IF(ISBLANK(E410),\"\", PRODUCT(C410,E410))","v":""}]
["29.12.1.","Storis 1,25 mm  ± 0,04 mm"]
["29.12.2.","Plotis 25 mm  ± 1 mm"]
["29.12.3.","Ilgis 95 mm  ± 5 mm"]
["29.12.4.","Sterilioje pakuotėje"]
["29.12.5.","Geležtės turi tikti ligoninėje esančiai Conmed Linvatec Hall 50 sistemai"]
["29.13.","Geležtės osciliuojančio pjovimo pjūklui, stambių kaulų osteosintezei",20,"vnt",null,{"$f":"IF(ISBLANK(E416),\"\", PRODUCT(C416,E416))","v":""}]
["29.13.1.","Storis 1,37 mm  ± 0,02 mm"]
["29.13.2.","Plotis 25 mm  ± 1 mm"]
["29.13.3.","Ilgis 90 mm  ± 5 mm"]
["29.13.4.","Sterilioje pakuotėje"]
["29.13.5.","Geležtės turi tikti ligoninėje esančiai Conmed Linvatec Hall 50 sistemai"]
["29.14.","Geležtės osciliuojančio pjovimo pjūklui, stambių kaulų osteosintezei",10,"vnt",null,{"$f":"IF(ISBLANK(E422),\"\", PRODUCT(C422,E422))","v":""}]
["29.14.1.","Storis 1,47 mm  ± 0,03 mm"]
["29.14.2.","Plotis 25 mm  ± 1 mm"]
["29.14.3.","Ilgis 90 mm  ± 5 mm"]
["29.14.4.","Sterilioje pakuotėje"]
["29.14.5.","Geležtės turi tikti ligoninėje esančiai Conmed Linvatec Hall 50 sistemai"]
["29.15.","Geležtės osciliuojančio pjovimo pjūklui,smulkių kaulų osteosintezei",10,"vnt",null,{"$f":"IF(ISBLANK(E428),\"\", PRODUCT(C428,E428))","v":""}]
["29.15.1.","Storis 0,40 mm  ± 0,02 mm"]
["29.15.2.","Plotis 9 mm  ± 0,5 mm"]
["29.15.3.","Ilgis 35 mm  ± 3 mm"]
["29.15.4.","Sterilioje pakuotėje"]
["29.15.5.","Geležtės turi tikti ligoninėje esančiai Conmed Linvatec Hall 50 sistemai"]
["29.16.","Geležtės osciliuojančio pjovimo pjūklui,smulkių kaulų osteosintezei",40,"vnt",null,{"$f":"IF(ISBLANK(E434),\"\", PRODUCT(C434,E434))","v":""}]
["29.16.1.","Storis 0,60 mm  ± 0,02 mm"]
["29.16.2.","Plotis 5 mm  ± 0,5 mm"]
["29.16.3.","Ilgis 27 mm  ± 3 mm"]
["29.16.4.","Sterilioje pakuotėje"]
["29.16.5.","Geležtės turi tikti ligoninėje esančiai Conmed Linvatec Hall 50 sistemai"]
["29.17.","Geležtės osciliuojančio pjovimo pjūklui, smulkių kaulų osteosintezei",40,"vnt",null,{"$f":"IF(ISBLANK(E440),\"\", PRODUCT(C440,E440))","v":""}]
["29.17.1.","Storis 0,65 mm  ± 0,02 mm"]
["29.17.2.","Plotis 9 mm  ± 0,5 mm"]
["29.17.3.","Ilgis 27 mm  ± 3 mm"]
["29.17.4.","Sterilioje pakuotėje"]
["29.17.5.","Geležtės turi tikti ligoninėje esančiai Conmed Linvatec Hall 50 sistemai"]
[null,null,null,null,"Suma be PVM",{"$f":"IF(OR(F344=\"\", F344=\"\", F344=\"\", F344=\"\", F344=\"\", F344=\"\", F350=\"\", F350=\"\", F350=\"\", F350=\"\", F350=\"\", F350=\"\", F356=\"\", F356=\"\", F356=\"\", F356=\"\", F356=\"\", F356=\"\", F362=\"\", F362=\"\", F362=\"\", F362=\"\", F362=\"\", F362=\"\", F368=\"\", F368=\"\", F368=\"\", F368=\"\", F368=\"\", F368=\"\", F374=\"\", F374=\"\", F374=\"\", F374=\"\", F374=\"\", F374=\"\", F380=\"\", F380=\"\", F380=\"\", F380=\"\", F380=\"\", F380=\"\", F386=\"\", F386=\"\", F386=\"\", F386=\"\", F386=\"\", F386=\"\", F392=\"\", F392=\"\", F392=\"\", F392=\"\", F392=\"\", F392=\"\", F398=\"\", F398=\"\", F398=\"\", F398=\"\", F398=\"\", F398=\"\", F404=\"\", F404=\"\", F404=\"\", F404=\"\", F404=\"\", F404=\"\", F410=\"\", F410=\"\", F410=\"\", F410=\"\", F410=\"\", F410=\"\", F416=\"\", F416=\"\", F416=\"\", F416=\"\", F416=\"\", F416=\"\", F422=\"\", F422=\"\", F422=\"\", F422=\"\", F422=\"\", F422=\"\", F428=\"\", F428=\"\", F428=\"\", F428=\"\", F428=\"\", F428=\"\", F434=\"\", F434=\"\", F434=\"\", F434=\"\", F434=\"\", F434=\"\", F440=\"\", F440=\"\", F440=\"\", F440=\"\", F440=\"\", F440=\"\"),\"\",SUM(F344:F445))","v":""},{"$f":"IF(OR(F344=\"\", F344=\"\", F344=\"\", F344=\"\", F344=\"\", F344=\"\", F350=\"\", F350=\"\", F350=\"\", F350=\"\", F350=\"\", F350=\"\", F356=\"\", F356=\"\", F356=\"\", F356=\"\", F356=\"\", F356=\"\", F362=\"\", F362=\"\", F362=\"\", F362=\"\", F362=\"\", F362=\"\", F368=\"\", F368=\"\", F368=\"\", F368=\"\", F368=\"\", F368=\"\", F374=\"\", F374=\"\", F374=\"\", F374=\"\", F374=\"\", F374=\"\", F380=\"\", F380=\"\", F380=\"\", F380=\"\", F380=\"\", F380=\"\", F386=\"\", F386=\"\", F386=\"\", F386=\"\", F386=\"\", F386=\"\", F392=\"\", F392=\"\", F392=\"\", F392=\"\", F392=\"\", F392=\"\", F398=\"\", F398=\"\", F398=\"\", F398=\"\", F398=\"\", F398=\"\", F404=\"\", F404=\"\", F404=\"\", F404=\"\", F404=\"\", F404=\"\", F410=\"\", F410=\"\", F410=\"\", F410=\"\", F410=\"\", F410=\"\", F416=\"\", F416=\"\", F416=\"\", F416=\"\", F416=\"\", F416=\"\", F422=\"\", F422=\"\", F422=\"\", F422=\"\", F422=\"\", F422=\"\", F428=\"\", F428=\"\", F428=\"\", F428=\"\", F428=\"\", F428=\"\", F434=\"\", F434=\"\", F434=\"\", F434=\"\", F434=\"\", F434=\"\", F440=\"\", F440=\"\", F440=\"\", F440=\"\", F440=\"\", F440=\"\", F440=\"\"),\"Neužpildytos visų objektų kainos\",\"\")","v":"Neužpildytos visų objektų kainos"}]
[null,null,null,null,"PVM suma"]
[null,null,null,null,"Suma su PVM",{"$f":"IF(ISBLANK(F447), \"\", SUM(F446:F447))","v":""}]
[]
["30.","Vienkartiniai artroskopiniai vamzdeliai"]
["30.1.","Vienkartiniai vamzdelių rinkiniai",500,"vnt",null,{"$f":"IF(ISBLANK(E451),\"\", PRODUCT(C451,E451))","v":""}]
["30.1.1.","Lengvai uždedami ant artroskopo siurblio. Kasetinio tipo. Steriliame įpakavime"]
["30.1.2.","Irigacinis ir atsiurbimo vamzdelių pora"]
["30.1.3.","Turi Luer tipo jungtį artroskopinių instrumentų pajungimui"]
["30.1.4.","Vamzdeliai komplektuojami su spaustukais"]
["30.1.5.","Ilgis ne mažiau 3 metrų"]
["30.1.6.","Kartu su vamzdeliais turi būti pateikiama panaudai nauja artroskopinė pompa (1 vnt.)"]
["30.1.7.","Maksimalus tėkmės greitis 2000L/min, Reguliuojamas nuo 0, žingsniai po 5"]
["30.1.8.","Minimalus tėkmės greitis 1000L/min"]
["30.1.9.","Maksimalus nustatomas slėgis 150 mmHg"]
["30.1.10.","Gali būti montuojamas ant lašelinės stovo ir statoma ant lygaus paviršiaus"]
["30.1.11.","Apšviestas displėjus"]
["30.1.12.","Rotorius ant priekinės panelės. Slėgio valdymo mygtukai ant priekinės panelės"]
["30.1.13.","Slėgio sensorius"]
["30.1.14.","Galimybė pajungti nuotolinio valdymo pultą"]
["30.1.15.","Maksimali srovė 1A"]
["30.1.16.","Įtampa 90-240 VAC; Dažnis 50/60"]
["30.1.17.","Grandinės dažnio nutekėjimas mažesnis nei 100µa"]
["30.1.18.","Saugikliai: 1.0 A, laiko atidėjimo saugikliai, 5 x 20 mm"]
["30.1.19.","Skysčio spaudimo intervalai: Artroskopija:30 - 150 mmHg (gamyklinis parametras: 400 mmHg)"]
["30.1.20.","Laparoskopija: 10 - 100% (0 - 180 ml/min)., gamyklinis parametras 100%"]
["30.1.21.","Matmenys : 19,7 cm (P) x 16,5 cm (A) x 20,3 cm (S); Svoris 3,15 kg"]
["30.1.22.","Įranga turi būti pažymėta CE ženklu (pateikti įrodančius dokumentus ar duomenis)"]
["30.1.23.","Garantija 24 mėn"]
[null,null,null,null,"Suma be PVM",{"$f":"IF(OR(F451=\"\", F451=\"\", F451=\"\", F451=\"\", F451=\"\", F451=\"\"),\"\",SUM(F451:F474))","v":""},{"$f":"IF(OR(F451=\"\", F451=\"\", F451=\"\", F451=\"\", F451=\"\", F451=\"\", F451=\"\"),\"Neužpildytos visų objektų kainos\",\"\")","v":"Neužpildytos visų objektų kainos"}]
[null,null,null,null,"PVM suma"]
[null,null,null,null,"Suma su PVM",{"$f":"IF(ISBLANK(F476), \"\", SUM(F475:F476))","v":""}]
[]
["31.","Vienkartiniai kandikliai spirometrijai. Filtras spirometrui"]
["31.1.","Vienkartiniai kandikliai spirometrijai tinkantys SPIRO USB arba pateikti lygiavertį spirometrą panaudai",1000,"vnt",null,{"$f":"IF(ISBLANK(E480),\"\", PRODUCT(C480,E480))","v":""}]
["31.1.1.","Spiro usb aparatui 2017 m gamybos"]
["31.1.2.","Skersmuo 30mm +/- 1 mm"]
["31.2.","Bakterijų/ virusų filtras (filtro rinkinys) spirometrui SPIRO USB:",20,"vnt",null,{"$f":"IF(ISBLANK(E483),\"\", PRODUCT(C483,E483))","v":""}]
["31.2.1.","Spirometrijai/ srovės tūrio/ maksimalios plaučių ventiliacijos matavimui"]
["31.2.2.","Įkvėpimo pasipriešinimas < 0,4 cm H2O/L/S esant 1L/S"]
["31.2.3.","Iškvėpimo pasipriešinimas < 0,4 cm H2O/L/S esant 1L/S"]
["31.2.4.","Filtro efektyvumas: % BFE>= 99,999% (Nelsono tyrimų laboratorija esant 30 L/min); % VFE>= 99,999% (Nelsono tyrimų laboratorija esant 30 L/min); % BFE@VFE %> 96 % (Health Protection Agensy Test Lab esant 750L/min)"]
["31.2.5.","Kandiklio ilgis 65 mm+/-2mm"]
["31.2.6.","Jungtys 30 mmID. 30 mm AD. Kūginė angos.+/-0,1 mm"]
["31.2.7.","Jungtys (filtras su įtaisytu antgaliu) : 30 mm ID. Kūginė anga+/-0,1 mm"]
["31.2.8.","Gaminyje nėra latekso"]
["31.2.9.","Aplinkos temperatūra nuo 0 laipsnių C iki 42 laipsnių C"]
["31.2.10.","Sant. Oro drėgmė nuo 0 % iki 100 % (nesikondensuoja)"]
[null,null,null,null,"Suma be PVM",{"$f":"IF(OR(F480=\"\", F480=\"\", F480=\"\", F480=\"\", F480=\"\", F480=\"\", F483=\"\", F483=\"\", F483=\"\", F483=\"\", F483=\"\", F483=\"\"),\"\",SUM(F480:F493))","v":""},{"$f":"IF(OR(F480=\"\", F480=\"\", F480=\"\", F480=\"\", F480=\"\", F480=\"\", F483=\"\", F483=\"\", F483=\"\", F483=\"\", F483=\"\", F483=\"\", F483=\"\"),\"Neužpildytos visų objektų kainos\",\"\")","v":"Neužpildytos visų objektų kainos"}]
[null,null,null,null,"PVM suma"]
[null,null,null,null,"Suma su PVM",{"$f":"IF(ISBLANK(F495), \"\", SUM(F494:F495))","v":""}]
[]
["32.","Adatos prostatos biopsijos"]
["32.1.","Adata prostatos biopsijos 16G, 200mm +/-5mm ilgio",50,"vnt",null,{"$f":"IF(ISBLANK(E499),\"\", PRODUCT(C499,E499))","v":""}]
["32.1.1.","Sterili, vienkartinio naudojimo"]
["32.1.2.","Pateikti biopsijos šaudyklę (panaudai) tinkančią pasiūlytoms prostatos16G 200mm +/-5mm biopsijos adatoms 1vnt"]
["32.2.","Adata prostatos biopsijos 16G, 250mm +/-5mm ilgio",450,"vnt",null,{"$f":"IF(ISBLANK(E502),\"\", PRODUCT(C502,E502))","v":""}]
["32.2.1.","Sterili, vienkartinio naudojimo"]
["32.2.2.","Pateikti biopsijos šaudyklę (panaudai) tinkančią pasiūlytoms prostatos 16 G 250mm +/-5mm biopsijos adatoms 1vnt."]
[null,null,null,null,"Suma be PVM",{"$f":"IF(OR(F499=\"\", F499=\"\", F499=\"\", F499=\"\", F499=\"\", F499=\"\", F502=\"\", F502=\"\", F502=\"\", F502=\"\", F502=\"\", F502=\"\"),\"\",SUM(F499:F504))","v":""},{"$f":"IF(OR(F499=\"\", F499=\"\", F499=\"\", F499=\"\", F499=\"\", F499=\"\", F502=\"\", F502=\"\", F502=\"\", F502=\"\", F502=\"\", F502=\"\", F502=\"\"),\"Neužpildytos visų objektų kainos\",\"\")","v":"Neužpildytos visų objektų kainos"}]
[null,null,null,null,"PVM suma"]
[null,null,null,null,"Suma su PVM",{"$f":"IF(ISBLANK(F506), \"\", SUM(F505:F506))","v":""}]
[]
["33.","Kvėpavimo kontūrai CPAP sistemai"]
["33.1.","Kvėpavimo kontūrai CPAP sistemai",100,"vnt",null,{"$f":"IF(ISBLANK(E510),\"\", PRODUCT(C510,E510))","v":""}]
["33.1.1.","Vienkartinio naudojimo"]
["33.1.2.","Vamzdelis ne mažiau 54 cm, jungtys F22/F22"]
["33.1.3.","Vamzdelis ne mažiau 120 cm, jungtys F22/M7,4 "]
["33.1.4.","Generatoriaus slėgio matavimo vamzdelis ne mažiau 160 cm "]
["33.1.5."," Drėgmės rinktuvas, termometras "]
[null,null,null,null,"Suma be PVM",{"$f":"IF(OR(F510=\"\", F510=\"\", F510=\"\", F510=\"\", F510=\"\", F510=\"\"),\"\",SUM(F510:F515))","v":""},{"$f":"IF(OR(F510=\"\", F510=\"\", F510=\"\", F510=\"\", F510=\"\", F510=\"\", F510=\"\"),\"Neužpildytos visų objektų kainos\",\"\")","v":"Neužpildytos visų objektų kainos"}]
[null,null,null,null,"PVM suma"]
[null,null,null,null,"Suma su PVM",{"$f":"IF(ISBLANK(F517), \"\", SUM(F516:F517))","v":""}]
[]
["34.","Enterinės mitybos pompos"]
["34.1.","Enterinė mitybos pompos tinkančios Amika aparatui (arba siūlytį lygiavertį produktą tinkantį nurodytai enterinė mitybos pompai",300,"vnt",null,{"$f":"IF(ISBLANK(E521),\"\", PRODUCT(C521,E521))","v":""}]
["34.1.1.","Siurblio komplektas - rinkinys: lygiavertis \"EasyBag\", 'Universal\". Siurblys su universaliu minkštųjų pakuočių tipo \"EasyBag\" pristatymu, su keičiamu antgaliu, lašinimo kamera, uždaromu čiaupu vaistų pristatymui, jungtis ENLock/ENFit tipo vamzdžiams"]
["34.1.2.","Integruotas spaustuvų spaustukas"]
["34.1.3.","T-gabalas švirkštui"]
["34.1.4.","EasyBag nustatymas, skirtas prisijungti prie \"EasyBag\" su laisvo srauto sistema"]
["34.1.5.","Varioline rinkinys, skirtas prisijungti prie \"EasyBag\", karūnų kamščio butelių ar balto kaklo butelių"]
["34.1.6.","Nustatomas su LuerLock jungtimi ir nuimamu ENLock jungtimi"]
["34.1.7.","Luer-free rinkiniai su Enlock jungtimi"]
["34.1.8.","Vamzdžių ilgis 250 cm ± 10cm"]
["34.1.9.","Perkančioji organizacija prašo pateikti šios dalies pavyzdį 1 vnt."]
[null,null,null,null,"Suma be PVM",{"$f":"IF(OR(F521=\"\", F521=\"\", F521=\"\", F521=\"\", F521=\"\", F521=\"\"),\"\",SUM(F521:F530))","v":""},{"$f":"IF(OR(F521=\"\", F521=\"\", F521=\"\", F521=\"\", F521=\"\", F521=\"\", F521=\"\"),\"Neužpildytos visų objektų kainos\",\"\")","v":"Neužpildytos visų objektų kainos"}]
[null,null,null,null,"PVM suma"]
[null,null,null,null,"Suma su PVM",{"$f":"IF(ISBLANK(F532), \"\", SUM(F531:F532))","v":""}]
[]
["35.","Uždara išmatų surinkimo sistema"]
["35.1.","Uždara išmatų surinkimo sistema. Skirta paciento išmatoms surinkti, apsaugant aplinkinę odą nuo sudirgimo",10,"vnt",122.63,{"$f":"IF(ISBLANK(E536),\"\", PRODUCT(C536,E536))","v":1226.3},"Uždara išmatų surinkimo sistema. Skirta paciento išmatoms surinkti, apsaugant aplinkinę odą nuo sudirgimo. Primed 20762"]
["35.1.1.","Sistema susideda: Iš lankstaus ir minkšto silikoninio kateterio su pripučiama žemo slėgio manžete. Silikoninis kateteris rentgenu peršviečiamas, su gylio įvedimo žyma. Papildomas kanalas intergruotas kateteryje, skirtas irigacijai, su aiškiai nurodyta informacija. Kateteris turi papildomą angą per kurią yra galimybė paimti turinio laboratoriniams tyrimams",null,null,null,null,null,"Sistema susideda: Iš lankstaus ir minkšto silikoninio kateterio su pripučiama žemo slėgio manžete. Silikoninis kateteris rentgenu peršviečiamas, su gylio įvedimo žyma. Papildomas kanalas intergruotas kateteryje, skirtas irigacijai, su aiškiai nurodyta informacija. Kateteris turi papildomą angą per kurią yra galimybė paimti turinio laboratoriniams tyrimams"]
["35.1.2.","Ne mažiau 3 vnt surinkimo maišų, kurių viduje yra skysčius absorbuojantis tamponas, paverčiantis skystį žele ir anga su kvapą sulaikančiu filtru, skirta perteklinių dujų išėjimui. Surenkamojo maišo talpa ne mažiau 1500ml. Maišas su uždarymo dangteliu, bei tikslia gradacija turinio kiekiui įvertinti.",null,null,null,null,null," 3 vnt surinkimo maišų, kurių viduje yra skysčius absorbuojantis tamponas, paverčiantis skystį žele ir anga su kvapą sulaikančiu filtru, skirta perteklinių dujų išėjimui. Surenkamojo maišo talpa 1500ml. Maišas su uždarymo dangteliu, bei tikslia gradacija turinio kiekiui įvertinti."]
["35.1.3.","Švirkštas 40-45 ml talpos, skirtas balionėliui užpildyti.",null,null,null,null,null,"Švirkštas 45 ml talpos, skirtas balionėliui užpildyti."]
["35.1.4.","Sistema turi specialų tvirtinimą prie ligonio lovos bei spaustuką sistemai uždaryti.",null,null,null,null,null,"Sistema turi specialų tvirtinimą prie ligonio lovos bei spaustuką sistemai uždaryti."]
["35.1.5.","Visi komponentai yra be latekso ir skirti vienkartiniam naudojimui. Sistemą galimą naudoti ne trumpiau kaip 28 dienas, keičiant tik susrinkimo maišus. (pateikti įrodančius dokumentus)",null,null,null,null,null,"Visi komponentai yra be latekso ir skirti vienkartiniam naudojimui. Sistemą galimą naudoti 28 dienas, keičiant tik susrinkimo maišus. "]
["35.2.","Maišeliai pakeitimui",150,"vnt",11.62,{"$f":"IF(ISBLANK(E542),\"\", PRODUCT(C542,E542))","v":1742.9999999999998},"Maišeliai pakeitimui. Primed 20865"]
["35.2.1.","Maišelių viduje yra skysčius absorbuojantis tamponas, paverčiantis skystį žele ir anga su kvapą sulaikančiu filtru, skirta perteklinių dujų išėjimui. Surenkamojo maišo talpa ne mažiau 1500ml. Maišas su uždarymo dangteliu, bei tikslia gradacija turinio kiekiui įvertinti.",null,null,null,null,null,"Maišelių viduje yra skysčius absorbuojantis tamponas, paverčiantis skystį žele ir anga su kvapą sulaikančiu filtru, skirta perteklinių dujų išėjimui. Surenkamojo maišo talpa 1500ml. Maišas su uždarymo dangteliu, bei tikslia gradacija turinio kiekiui įvertinti."]
[null,null,null,null,"Suma be PVM",{"$f":"IF(OR(F536=\"\", F536=\"\", F536=\"\", F536=\"\", F536=\"\", F536=\"\", F542=\"\", F542=\"\", F542=\"\", F542=\"\", F542=\"\", F542=\"\"),\"\",SUM(F536:F543))","v":2969.2999999999997},{"$f":"IF(OR(F536=\"\", F536=\"\", F536=\"\", F536=\"\", F536=\"\", F536=\"\", F542=\"\", F542=\"\", F542=\"\", F542=\"\", F542=\"\", F542=\"\", F542=\"\"),\"Neužpildytos visų objektų kainos\",\"\")","v":""}]
[null,null,null,null,"PVM suma",148.47]
[null,null,null,null,"Suma su PVM",{"$f":"IF(ISBLANK(F545), \"\", SUM(F544:F545))","v":3117.7699999999995}]
[]
["36.","Adapteris nefrostomos kateriui prijungti"]
["36.1.","Adapteris nefrostomos katerio prijungti šlapimo surinkimo maišelį CH8 - CH10",200,"vnt",null,{"$f":"IF(ISBLANK(E549),\"\", PRODUCT(C549,E549))","v":""}]
["36.1.1.","Vienkartinis"]
["36.1.2.","Vienas galas prisisuka prie nefrostominio kateterio galo, kitas prisijungia prie šlapimo surinkimo maišelio"]
[null,null,null,null,"Suma be PVM",{"$f":"IF(OR(F549=\"\", F549=\"\", F549=\"\", F549=\"\", F549=\"\", F549=\"\"),\"\",SUM(F549:F551))","v":""},{"$f":"IF(OR(F549=\"\", F549=\"\", F549=\"\", F549=\"\", F549=\"\", F549=\"\", F549=\"\"),\"Neužpildytos visų objektų kainos\",\"\")","v":"Neužpildytos visų objektų kainos"}]
[null,null,null,null,"PVM suma"]
[null,null,null,null,"Suma su PVM",{"$f":"IF(ISBLANK(F553), \"\", SUM(F552:F553))","v":""}]
[]
["37.","Kateteris  ureterinis CH7"]
["37.1.","Kateteris  ureterinis CH7",50,"vnt",2.96,{"$f":"IF(ISBLANK(E557),\"\", PRODUCT(C557,E557))","v":148},"Kateteris  ureterinis CH7. Teleflex Rusch 223604"]
["37.1.1.","Sterilus, rentgenokontrastinis",null,null,null,null,null,"Sterilus, rentgenokontrastinis"]
["37.1.2.","Atviras galas, Tiemann ar Nelatono tipo",null,null,null,null,null,"Atviras galas, Nelatono tipo"]
["37.1.3.","70 cm ± 1 cm, su stiletu",null,null,null,null,null,"70 cm, su stiletu"]
["37.1.4.","Į sterilų rinkinį įeina adapteris",null,null,null,null,null,"Į sterilų rinkinį įeina adapteris"]
["37.2.","Kateteris  ureterinis CH7",20,"vnt",9,{"$f":"IF(ISBLANK(E562),\"\", PRODUCT(C562,E562))","v":180},"Kateteris  ureterinis CH7. Teleflex Rusch 264100"]
["37.2.1.","Sterilus, rentgenokontrastinis",null,null,null,null,null,"Sterilus, rentgenokontrastinis"]
["37.2.2.","Atviras galas, Tiemann tipo",null,null,null,null,null,"Atviras galas, Tiemann tipo"]
["37.2.3.","70 cm ± 1 cm, su stiletu",null,null,null,null,null,"70 cm, su stiletu"]
["37.2.4.","Į sterilų rinkinį įeina adapteris",null,null,null,null,null,"Į sterilų rinkinį įeina adapteris"]
[null,null,null,null,"Suma be PVM",{"$f":"IF(OR(F557=\"\", F557=\"\", F557=\"\", F557=\"\", F557=\"\", F557=\"\", F562=\"\", F562=\"\", F562=\"\", F562=\"\", F562=\"\", F562=\"\"),\"\",SUM(F557:F566))","v":328},{"$f":"IF(OR(F557=\"\", F557=\"\", F557=\"\", F557=\"\", F557=\"\", F557=\"\", F562=\"\", F562=\"\", F562=\"\", F562=\"\", F562=\"\", F562=\"\", F562=\"\"),\"Neužpildytos visų objektų kainos\",\"\")","v":""}]
[null,null,null,null,"PVM suma",16.399999999999999]
[null,null,null,null,"Suma su PVM",{"$f":"IF(ISBLANK(F568), \"\", SUM(F567:F568))","v":344.4}]

{"sheet":"Subtiekėjai","index":1,"n_rows":100,"n_cols":9,"rows_kept":100,"cut":false,"hidden":false,"merged":[[12,8,12,9],[13,8,13,9],[14,8,14,9],[15,8,15,9],[16,8,16,9],[1,0,1,10],[5,0,5,1],[5,2,5,4],[5,5,5,7],[5,8,5,9],[4,0,4,1],[4,2,4,4],[4,5,4,7],[4,8,4,9],[3,0,3,1],[3,2,3,4],[3,5,3,7],[3,8,3,9],[8,8,8,9],[10,0,10,9],[6,0,6,1],[6,2,6,4],[6,5,6,7],[6,8,6,9],[7,0,7,1],[7,2,7,4],[7,5,7,7],[7,8,7,9],[14,1,14,3],[15,4,15,5],[16,4,16,5],[8,0,8,1],[8,2,8,4],[8,5,8,7],[12,6,12,7],[13,6,13,7],[14,6,14,7],[15,6,15,7],[16,6,16,7],[13,1,13,3],[12,1,12,3],[12,4,12,5],[13,4,13,5],[14,4,14,5],[32,0,32,3],[32,4,32,9],[19,0,19,10],[16,1,16,3],[15,1,15,3],[22,0,22,9],[23,0,23,9],[25,0,25,9],[29,0,29,3],[29,4,29,9],[17,1,17,3],[17,4,17,5],[17,6,17,7],[17,8,17,9],[21,0,21,3],[21,4,21,9]]}
[]
["Subtiekėjai ir jiems perduodama vykdyti pirkimo sutarties dalis:"]
[]
["Eil. Nr",null,"Subtiekėjo pavadinimas",null,null,"Pirkimo objekto dalies, perduodamos vykdyti subtiekėjui, aprašymas",null,null,"Procentas perduodamos vykdyti pirkimo objekto dalies nuo pasiūlymo kainos su PVM (pildoma, jei ūkio subjektas vykdys sutartį)"]
[]
[]
[]
[]
[]
[]
["Kartu su pasiūlymu pateikiami šie dokumentai:"]
[]
["Eil.Nr.","Dokumentas",null,null,"Ar dokumnetas konfidencialus? (Taip/Ne)",null,"Prisegtos bylos (failo) pavadinimas ",null,"Paaiškinimas, kokia konkreti informacija dokumente yra konfidenciali"]
[]
[]
[]
[]
[]
[]
["Pasirašydamas šį pasiūlymą, tvirtintu, kad:\n1) pasiūlymo dokumentuose pateikti duomenys yra tikri;\n2) siūlomas Pirkimo objektas visiškai atitinka Pirkimo dokumentuose nustatytus reikalavimus;\n3) sutinku su visomis Pirkimo dokumentuose nustatytomis sąlygomis;\n4) pasiūlymas galioja iki termino, nustatyto Pirkimo dokumentuose; \n5) mes esame / nesame (nereikalingą išbraukti) laikomi asocijuotais (susijusiais) su Perkančiuoju subjektu pagal Lietuvos Respublikoje galiojančių teisės aktų (Lietuvos Respublikos pelno mokesčio, Lietuvos Respublikos pridėtinės vertės mokesčio ir Lietuvos Respublikos gyventojų pajamų mokesčio įstatymų) nuostatas; \n6) savo pasiūlymo galiojimą užtikrinsiu pagal Specialiųjų sąlygų 6.1 punktą (jei taikoma)."]
[]
["Pasiūlymo galiojimo užtikrinimui pateikiame :"]
[]
["(Nurodyti užtikrinimo būdą, dydį, dokumentus)"]
[]
["\nPasiūlymas galioja iki termino, nustatyto pirkimo dokumentuose.\n\nPasiūlymo neatskiriama dalis yra (rašoma, jeigu buvo reikalauta prie pasiūlymo pridėti atitinkamą dokumentą)"]
[]
[]
[]
["Tiekėjo arba jo įgalioto asmens pareigų pavadinimas"]
[]
[]
["Pasirašančio asmens vardas ir pavardė"]
[]
[]
[]
[]
[]
[]
[]
[]
[]
[]
[]
[]
[]
[]
[]
[]
[]
[]
[]
[]
[]
[]
[]
[]
[]
[]
[]
[]
[]
[]
[]
[]
[]
[]
[]
[]
[]
[]
[]
[]
[]
[]
[]
[]
[]
[]
[]
[]
[]
[]
[]
[]
[]
[]
[]
[]
[]
[]
[]
[]
[]
[]
[]
[]
[]
[]
["2928-1 2019-05-29 11:33:14"]